Cogmind - Beta 16 @@@ ROGUE MODE // 2026.01.11 @ 00:04:44 Player: OctarineSorcerer Result: Destroyed by L-61 Swordsman with Power Sword Performance ------------- Evolutions (5) 2500 Regions Visited (11) 2200 Robots Destroyed (119) 595 Value Destroyed (3551) 3551 Prototype IDs (15) 300 Alien Tech Used (0) 0 Bonus (1200) 1200 TOTAL SCORE: 10346 Bonus ------- Pacifist 200 Met Warlord at Base 500 MAIN.C Attacked Warlord 500 Cogmind --------- Core Integrity 0/1000 Matter 300/300 Energy 100/100 System Corruption 4% Temperature Cool (0) Movement Core (50) Location -4/Proximity Caves Parts ------- > --- POWER (3) -------- (None) > --- PROPULSION (4) --- (None) > --- UTILITY (8) ------ Improved Signal Interpreter 0b10 Decoder Chip [Generic] Advanced Targeting Computer Advanced Targeting Computer Advanced Targeting Computer > --- WEAPON (2) ------- (None) > --- INVENTORY (5) ---- Force Rifle Vortex Rifle (35) Vortex Cannon (26) Phasing Sabre Phasing Sabre Peak State ------------ > --- POWER ------------ Light Nuclear Core Neutrino Core > --- PROPULSION ------- Armored Medium Treads Armored Medium Treads Armored Medium Treads Wheel > --- UTILITY ---------- Improved Signal Interpreter 0b10 Decoder Chip [Generic] Advanced Targeting Computer Advanced Targeting Computer Advanced Targeting Computer Improved Transmission Jammer Layered Medium Armor Plating Improved Recalibrator > --- WEAPON ----------- Force Rifle RU-N14's Throwing Claymores v3 > --- INVENTORY -------- Force Rifle Vortex Rifle Vortex Cannon Phasing Sabre Phasing Sabre [Rating: 80] Favorites ----------- Power Micro Nuclear Core Engine Ion Engine Power Core Micro Nuclear Core Propulsion Advanced Treads Treads Advanced Treads Leg Aluminum Leg Wheel Wheel Hover Unit Backup Propulsion III Utility Advanced Targeting Computer Device Improved Sensor Array Storage Large Storage Unit Processor Advanced Targeting Computer Hackware Advanced Hacking Suite Protection Improved Light Armor Plating Weapon Heavy Ion Cannon Energy Gun Makeshift Laser Energy Cannon Heavy Ion Cannon Ballistic Gun Gauss Rifle Ballistic Cannon Gauss Cannon Launcher Improved Concussive RPG Special Weapon RU-N14's Throwing Claymores v3 Build | -11 -10 -9 -9 -8 -7 -6 -5 -5 -5 -5 -4 ------- Run | Yrd Mat Mat Min Mat Fac Fac Fac Upp Upp War Pro Slots Evolved 10 | . . 2 . 2 2 2 2 . . . . Power 2 | . . 1 . . 1 . . . . . . Propulsion 2 | . . 1 . . . . 1 . . . . Utility 6 | . . . . 2 1 2 1 . . . . Weapon . | . . . . . . . . . . . . Parts Attached 159 | 6 . 10 6 37 35 20 12 3 21 9 . Power 39 | 1 . 1 1 9 13 5 5 1 3 . . Engine 15 | 1 . 1 1 8 2 . 2 . . . . Core 24 | . . . . 1 11 5 3 1 3 . . Reactor . | . . . . . . . . . . . . Propulsion 35 | 2 . 6 . 7 7 3 3 . 3 4 . Treads 14 | . . 3 . 7 1 . . . . 3 . Leg 16 | 2 . 3 . . 4 3 2 . 1 1 . Wheel 4 | . . . . . 2 . 1 . 1 . . Hover 1 | . . . . . . . . . 1 . . Flight . | . . . . . . . . . . . . Utility 44 | 1 . 1 2 11 8 7 3 2 9 . . Device 20 | . . . . 5 7 5 1 . 2 . . Storage 5 | 1 . . 1 . 1 . . 1 1 . . Processor 7 | . . . . 2 . . . 1 4 . . Hackware 2 | . . . . . . . 1 . 1 . . Protection 10 | . . 1 1 4 . 2 1 . 1 . . Artifact . | . . . . . . . . . . . . Weapon 41 | 2 . 2 3 10 7 5 1 . 6 5 . Energy Gun 20 | 1 . 1 . 3 4 1 1 . 6 3 . Energy Cannon 8 | . . . 2 3 1 1 . . . 1 . Ballistic Gun 5 | 1 . 1 . 2 1 . . . . . . Ballistic Cannon 3 | . . . 1 1 1 . . . . . . Launcher 4 | . . . . 1 . 3 . . . . . Special Weapon 1 | . . . . . . . . . . 1 . Impact Weapon . | . . . . . . . . . . . . Slashing Weapon . | . . . . . . . . . . . . Piercing Weapon . | . . . . . . . . . . . . Special Melee Weapon . | . . . . . . . . . . . . Unidentified Prototypes 12 | . . 1 . 5 1 1 . . . 4 . Parts Lost 84 | . . 3 1 13 25 11 4 1 18 8 . Power 25 | . . . . 6 9 2 2 . 5 1 . Propulsion 21 | . . 2 . 2 6 2 . . 5 4 . Utility 22 | . . . . 3 5 5 . 1 6 2 . Weapon 16 | . . 1 1 2 5 2 2 . 2 1 . Highest Loss Streak 8 | . . 3 1 4 6 8 4 1 8 7 . To Critical Strikes 1 | . . . . . . . . . 1 . . Average Backups 7 | 1 2 3 9 12 11 4 1 1 3 4 5 Power . | . 1 . . . 1 1 . . . . . Propulsion . | . 1 1 1 . . . . . . . . Utility 3 | . . 1 5 7 4 2 . . 1 . . Weapon 2 | . . 1 2 3 4 . . . 1 4 5 Tool/Special . | . . . . . . . . . . . . Unused Backups 23 | . . 2 1 6 6 1 . . 1 3 3 Power 1 | . . . . . 1 . . . . . . Propulsion 1 | . . 1 . . . . . . . . . Utility 10 | . . 1 1 3 3 1 . . 1 . . Weapon 11 | . . . . 3 2 . . . . 3 3 Tool/Special . | . . . . . . . . . . . . Average Slot Usage (%) 80 | . 85 95 98 96 89 73 43 65 58 77 29 Engine 6 | . 14 21 21 14 2 1 6 3 . . . Core 8 | . . . . 1 19 12 1 12 5 10 . Treads 9 | . . 4 33 26 6 . . . . . . Leg 6 | . 28 27 . . 6 10 7 11 3 3 . Wheel 1 | . . . . . 1 . . 5 1 4 . Device 12 | . . . . 12 22 27 6 11 5 7 . Storage 5 | . 14 11 11 9 5 . . 1 2 . . Processor 10 | . . . . 2 7 6 5 5 26 29 29 Protection 4 | . . 9 11 11 . 4 1 4 1 4 . Energy Gun 5 | . 14 10 9 . 8 3 3 . 7 6 . Energy Cannon 2 | . . . 1 7 1 5 2 . . 1 . Ballistic Gun 2 | . 14 11 8 4 . . . . . . . Ballistic Cannon 1 | . . . 1 5 3 . . . . . . Peak Build Rating 80 | 6 6 20 27 43 47 53 58 59 59 80 20 Average Rating 37 | 4 6 12 22 36 38 40 32 52 41 60 20 On Entrance 25 | . 6 6 20 26 32 39 8 49 59 44 20 Avg Prop Armor Cover (%) 9 | . . . . 6 6 11 11 14 20 5 . Naked Turns . | . . . . . . . . . . . . Heaviest Build 68 | 13 13 22 50 60 68 61 34 38 34 51 . Greatest Support 81 | 20 20 66 66 66 64 48 32 28 32 81 3 Greatest Overweight (x) 14 | 4 . 2 . 1 14 7 4 1 6 5 . Average Overweight (x) . | 1 . . . . 1 1 . . 1 3 . Largest Inventory Capacity 15 | 8 8 8 15 15 15 5 5 5 5 5 5 Average Capacity 9 | 7 8 8 13 15 12 5 5 5 5 5 5 Most Carried 15 | 2 3 8 12 15 15 5 4 3 5 5 5 Average Carried 7 | 1 2 3 9 12 11 4 1 1 3 4 5 Final Capacity 15 | 8 8 8 15 15 5 5 5 5 5 5 5 Final Carried 12 | 2 3 8 12 12 5 3 1 2 4 5 5 Class Distribution -------------------- 72% | Mutant 12% | Infiltrator-Mutant 8% | Derelict-Mutant 5% | Scavenger-Mutant Dominant Class ---------------- Mutant | -10/Materials Mutant | -9/Materials Mutant | -9/Mines Mutant | -8/Materials Mutant | -7/Factory Infiltrator-Mutant | -6/Factory Mutant | -5/Factory Infiltrator-Mutant | -5/Upper Caves Derelict-Mutant | -5/Upper Caves Mutant | -5/Warlord Mutant | -4/Proximity Caves Resources | -11 -10 -9 -9 -8 -7 -6 -5 -5 -5 -5 -4 ----------- Run | Yrd Mat Mat Min Mat Fac Fac Fac Upp Upp War Pro Matter Collected 3199 | 261 . 157 177 1272 628 119 265 50 190 80 . Remotely . | . . . . . . . . . . . . Salvage Created 4099 | . . 311 106 1492 1488 113 354 . 235 . . Parts 222 | . . 15 11 88 74 3 22 . 9 . . Haulers Intercepted 4 | . . . . 3 1 . . . . . . Recyclers Shooed 6 | . . . . . 3 1 2 . . . . Parts Field Recycled . | . . . . . . . . . . . . Retrieved Matter . | . . . . . . . . . . . . Parts Self-Destructed 8 | . . . . . . . . 1 7 . . Prevented . | . . . . . . . . . . . . Parts Restored 1 | . . . . . . . . . 1 . . Broken 1 | . . . . . . . . . 1 . . Kills | -11 -10 -9 -9 -8 -7 -6 -5 -5 -5 -5 -4 ------- Run | Yrd Mat Mat Min Mat Fac Fac Fac Upp Upp War Pro Combat Hostiles Destroyed 75 | . . 9 6 24 27 2 1 . 6 . . Guns 39 | . . 9 5 4 15 . . . 6 . . Cannons 29 | . . . 1 20 6 2 . . . . . AOE 6 | . . . . . 6 . . . . . . Classes Destroyed 14 | . . 4 1 8 1 . . . . . . Worker 18 | . . . . 11 7 . . . . . . Builder 3 | . . . . 1 1 . 1 . . . . Tunneler 4 | . . . 1 1 1 . 1 . . . . Hauler 4 | . . . . 3 1 . . . . . . Recycler 6 | . . . . 2 2 . 2 . . . . Operator 2 | . . . . 2 . . . . . . . Watcher 7 | . . 2 . 2 3 . . . . . . Swarmer 22 | . . 4 4 4 6 . . . 4 . . Grunt 29 | . . 4 2 13 10 . . . . . . Brawler 1 | . . . . 1 . . . . . . . Duelist 3 | . . 1 . . 1 1 . . . . . Sentry 8 | . . . . 5 3 . . . . . . Hunter 5 | . . . . 1 1 . 1 . 2 . . Programmer 7 | . . . . . 6 1 . . . . . Best Kill Streak 6 | . . 4 3 5 6 1 2 . 4 . . Combat Bots Only 6 | . . 4 3 3 6 1 1 . 4 . . Max Kills in Single Turn 2 | . . 2 1 2 2 1 1 . 1 . . Gunslinging 1 | . . 1 . . . . . . . . . Exploded 2 | . . . . . 2 . . . . . . Melee . | . . . . . . . . . . . . Uniques/NPCs Destroyed . | . . . . . . . . . . . . Combat | -11 -10 -9 -9 -8 -7 -6 -5 -5 -5 -5 -4 -------- Run | Yrd Mat Mat Min Mat Fac Fac Fac Upp Upp War Pro Hostile Shots Fired 1061 | . . 55 57 211 340 108 42 16 158 63 11 Missed 300 | . . 14 9 51 118 27 10 4 43 19 5 Hits 761 | . . 41 48 160 222 81 32 12 115 44 6 Melee 30 | . . 4 . 2 8 5 . . . 10 1 Projectile 731 | . . 37 48 158 214 76 32 12 115 34 5 AOE 1 | . . . . . . . . . . 1 . Critical Strikes 22 | . . . . 5 5 5 . . 2 4 1 Part Disruptions 2 | . . . . . . 2 . . . . . Damage Taken 13093 | . . 524 432 2506 3040 1840 523 297 1865 1917 149 Core 2615 | . . 39 58 211 566 717 18 72 472 313 149 Absorbed by Shields 64 | . . . . . . 64 . . . . . Redirected to Shielding 8 | . . 8 . . . . . . . . . Ignored by Resistances 130 | . . . . 11 119 . . . . . . Regen/Repaired (Parts) 73 | . . . . 11 . . . . . 62 . Core Remaining (%) 61 | 100 100 . 75 61 19 15 . . . . . Volleys Fired 356 | 1 1 31 26 122 110 17 13 . 35 . . Largest 2 | 2 2 2 2 2 2 2 2 . 2 . . Hottest 143 | 70 70 88 123 123 130 143 140 . 131 . . Shots Fired 635 | 2 2 61 46 228 213 29 17 . 37 . . Gun 393 | 2 2 61 32 65 172 9 13 . 37 . . Cannon 239 | . . . 14 163 41 17 4 . . . . Launcher 3 | . . . . . . 3 . . . . . Special . | . . . . . . . . . . . . Kinetic 247 | 1 1 31 19 145 50 . . . . . . Thermal 336 | 1 1 30 27 83 138 15 4 . 37 . . Explosive 3 | . . . . . . 3 . . . . . Electromagnetic 49 | . . . . . 25 11 13 . . . . Robot Hit Streak 28 | 2 4 8 6 9 13 10 7 . 28 . . Robot Miss Streak 6 | . . 5 5 6 4 5 2 . 1 . . Penetration Max 1 | . . . . 1 1 . . . . . . Secondary Targets 4 | . . 2 1 . 1 . . . . . . Max Gunslinging Chain 1 | . . 1 1 . 1 . . . . . . Shots Hit Robots 401 | 2 2 40 27 115 152 17 11 . 35 . . Core Hits 192 | 1 1 20 17 57 63 15 8 . 10 . . Critical Kills 9 | . . . . 9 . . . . . . . Critical Parts Destroyed 9 | . . . . 9 . . . . . . . Critical Strikes 36 | . . 1 . 21 9 . . . 5 . . Burn 9 | . . 1 . . 3 . . . 5 . . Destroy 19 | . . . . 19 . . . . . . . Blast 8 | . . . . 2 6 . . . . . . Melee Attacks . | . . . . . . . . . . . . Impact . | . . . . . . . . . . . . Slashing . | . . . . . . . . . . . . Piercing . | . . . . . . . . . . . . Sneak Attacks . | . . . . . . . . . . . . Combat Hostiles . | . . . . . . . . . . . . Follow-up Attacks . | . . . . . . . . . . . . Damage Inflicted 9649 | 18 19 549 392 3089 3741 828 281 . 730 2 . Guns 4972 | 18 19 545 298 669 2412 47 234 . 730 . . Cannons 3526 | . . . 86 2362 730 324 24 . . . . Explosions 1042 | . . . . . 589 453 . . . . . Melee . | . . . . . . . . . . . . Ramming 109 | . . 4 8 58 10 4 23 . . 2 . Kinetic 3257 | 6 7 327 133 1876 908 . . . . . . Thermal 5340 | 12 12 218 251 1155 2433 505 24 . 730 . . Explosive 146 | . . . . . . 146 . . . . . Electromagnetic 797 | . . . . . 390 173 234 . . . . Impact . | . . . . . . . . . . . . Slashing . | . . . . . . . . . . . . Piercing . | . . . . . . . . . . . . Highest Corruption 9 | . . 3 3 9 7 3 . . . 4 4 Average Corruption 4 | . . 1 3 7 5 1 . . . 4 4 Corruption Purged . | . . . . . . . . . . . . Corruption Blocked . | . . . . . . . . . . . . Effects 85 | . . 4 9 23 27 4 . . . 15 3 Message Errors 21 | . . 1 2 4 6 1 . . . 6 1 Matter Fused 18 | . . . 2 7 5 3 . . . 1 . Heat Flow Errors 8 | . . . . 3 3 . . . . 2 . Energy Discharges 14 | . . 1 . 2 6 . . . . 4 1 Parts Rejected 1 | . . . 1 . . . . . . . . Parts Fused 2 | . . . . 1 . . . . . 1 . Data Loss (minor) 14 | . . . 3 4 5 . . . . 1 1 Data Loss (major) 3 | . . 1 . 1 1 . . . . . . Misfires 4 | . . 1 1 1 1 . . . . . . Overload Shots . | . . . . . . . . . . . . Overflow Damage 385 | . . . . 23 313 47 2 . . . . Projectiles 62 | . . . . 23 23 16 . . . . . Explosions 321 | . . . . . 290 31 . . . . . Melee 2 | . . . . . . . 2 . . . . Knockbacks 18 | . . . . 14 4 . . . . . . Impact . | . . . . . . . . . . . . Kinetic 16 | . . . . 12 4 . . . . . . Secondary 2 | . . . . 2 . . . . . . . Self-Inflicted Damage 488 | . . . . . 250 229 9 . . . . Shots 11 | . . . . . 4 7 . . . . . Rammed 21 | . . . 1 8 . 4 7 . . 1 . Targets Rammed 25 | . . 1 1 10 1 4 7 . . 1 . Kicked 1 | . . 1 . . . . . . . . . Crushed 3 | . . . . 2 1 . . . . . . Highest Temperature 513 | 30 30 233 513 415 428 110 96 . 160 333 . Average Temperature 124 | 18 19 73 187 122 199 52 34 . 43 153 . Received Heat Transfer 2046 | . . 192 90 648 477 471 . 45 27 69 27 Effects 23 | . . . 13 7 3 . . . . . . Shutdowns 7 | . . . 5 2 . . . . . . . Energy Bleed 5 | . . . 3 1 1 . . . . . . Interference 4 | . . . 1 3 . . . . . . . Matter Decay 2 | . . . . 1 1 . . . . . . Short Circuit 1 | . . . 1 . . . . . . . . Damage (minor) 2 | . . . 1 . 1 . . . . . . Damage (major) 2 | . . . 2 . . . . . . . . Siege Activations . | . . . . . . . . . . . . Martial Activations . | . . . . . . . . . . . . Shielding Activations . | . . . . . . . . . . . . Robots Disrupted . | . . . . . . . . . . . . Combat Hostiles . | . . . . . . . . . . . . Robots Corrupted 1 | . . . . . . . 1 . . . . Combat Hostiles 1 | . . . . . . . 1 . . . . Parts Fried 4 | . . . . . 1 . 3 . . . . Impact Corruptions 1 | . . . . . . . 1 . . . . Robots Melted . | . . . . . . . . . . . . Combat Hostiles . | . . . . . . . . . . . . Parts Melted 14 | . . . 1 1 8 2 . . 2 . . Heat Transferred 9041 | 37 37 625 321 1591 3915 800 50 . 1665 . . Parts Sabotaged . | . . . . . . . . . . . . Parts Stolen . | . . . . . . . . . . . . Parts Stripped . | . . . . . . . . . . . . Power Chain Reactions 4 | . . . . . 2 2 . . . . . Alert | -11 -10 -9 -9 -8 -7 -6 -5 -5 -5 -5 -4 ------- Run | Yrd Mat Mat Min Mat Fac Fac Fac Upp Upp War Pro Maximum Alert Level 1 | . . . . 1 1 . . . . . . Low Security (%) 77 | 100 100 100 100 88 43 100 100 . . . . Level 1 22 | . . . . 11 56 . . . . . . Level 2 . | . . . . . . . . . . . . Level 3 . | . . . . . . . . . . . . Level 4 . | . . . . . . . . . . . . Level 5 . | . . . . . . . . . . . . High Security . | . . . . . . . . . . . . Max Security . | . . . . . . . . . . . . Peak Influence 338 | . 5 107 60 338 329 147 30 . . . . Initial 150 | . . . . 9 150 147 13 . . . . Average 110 | . . 34 9 126 193 34 3 . . . . Influence Increases 3080 | . 5 254 151 968 1117 225 70 . 185 15 90 Destroy 0b10 Robot/C 1500 | . . 180 120 480 540 40 20 . 120 . . Destroy 0b10 Robot/NC 220 | . . 10 5 110 75 . 20 . . . . Destroy Leader 392 | . . 34 20 120 168 20 10 . 20 . . Successful Hack 59 | . 5 . . 19 5 10 20 . . . . Disable Machine 390 | . . . . 90 240 60 . . . . . Destroy Structure 189 | . . . 6 74 89 20 . . . . . Lose Combat Pursuer 330 | . . 30 . 75 . 75 . . 45 15 90 Influence Decreases 3070 | . 5 254 125 662 1149 497 88 10 174 26 80 Entered New Map 382 | . . . . 17 182 153 15 4 . 11 . Time Decay 2026 | . 5 214 115 525 600 259 63 6 144 15 80 Lost Part 505 | . . 30 10 120 220 85 10 . 30 . . Purge Threat 157 | . . 10 . . 147 . . . . . . Squads Dispatched 18 | . . . . 3 11 2 2 . . . . Investigation 2 | . . . . . 1 . 1 . . . . Extermination 6 | . . . . . 4 2 . . . . . Reinforcement 6 | . . . . 3 2 . 1 . . . . Assault . | . . . . . . . . . . . . Garrison 4 | . . . . . 4 . . . . . . Intercept . | . . . . . . . . . . . . Searches Triggered . | . . . . . . . . . . . . Construction Impeded 3 | . . . . 1 2 . . . . . . Haulers Reinforced . | . . . . . . . . . . . . Active Scanning Responses . | . . . . . . . . . . . . Cargo Convoy Interrupts . | . . . . . . . . . . . . Stealth | -11 -10 -9 -9 -8 -7 -6 -5 -5 -5 -5 -4 --------- Run | Yrd Mat Mat Min Mat Fac Fac Fac Upp Upp War Pro Distress Signals 4 | . 1 . . 2 . 1 . . . . . Communications Jammed 63 | . . . . 63 . . . . . . . Distress Signals 63 | . . . . 63 . . . . . . . Times Spotted 158 | . . 15 15 38 34 14 3 3 10 17 9 Peak Tracking Total 12 | . . 5 6 6 5 4 2 1 4 12 3 Tactical Retreats 19 | . . 1 2 3 . 4 . 3 3 1 2 ECM-based Alert Blocks 7 | . . . . . . 3 . 3 1 . . Traps | -11 -10 -9 -9 -8 -7 -6 -5 -5 -5 -5 -4 ------- Run | Yrd Mat Mat Min Mat Fac Fac Fac Upp Upp War Pro Traps Triggered 9 | . . 2 . . 5 . . . . 2 . Indirectly . | . . . . . . . . . . . . Trap Hack Attempts . | . . . . . . . . . . . . Triggered . | . . . . . . . . . . . . Disarmed . | . . . . . . . . . . . . Reprogrammed . | . . . . . . . . . . . . Reused . | . . . . . . . . . . . . Traps Extracted . | . . . . . . . . . . . . Installed . | . . . . . . . . . . . . Triggered . | . . . . . . . . . . . . Machines | -11 -10 -9 -9 -8 -7 -6 -5 -5 -5 -5 -4 ---------- Run | Yrd Mat Mat Min Mat Fac Fac Fac Upp Upp War Pro Machines Disabled 26 | . . . . 6 16 4 . . . . . Max in Single Turn 10 | . . . . 1 10 4 . . . . . Garrison Access 1 | . . . . . . . 1 . . . . Machines Repaired . | . . . . . . . . . . . . Machines Dismantled . | . . . . . . . . . . . . Machines Sabotaged . | . . . . . . . . . . . . Overloaded Fab Kills . | . . . . . . . . . . . . Hacking | -11 -10 -9 -9 -8 -7 -6 -5 -5 -5 -5 -4 --------- Run | Yrd Mat Mat Min Mat Fac Fac Fac Upp Upp War Pro Machines Accessed 28 | . 3 4 . 3 5 3 4 . 2 4 . Terminals 14 | . 2 4 . 2 3 1 1 . 1 . . Fabricators 1 | . . . . . . . 1 . . . . Repair Stations 3 | . 1 . . 1 . 1 . . . . . Recycling Units . | . . . . . . . . . . . . Scanalyzers 2 | . . . . . 1 . 1 . . . . Garrison Access 3 | . . . . . 1 1 1 . . . . Total Hacks 61 | . 8 7 . 10 15 6 7 . 3 5 . Successful 39 | . 4 4 . 8 9 1 5 . 3 5 . Failed 21 | . 4 3 . 2 5 5 2 . . . . Catastrophic 2 | . . . . . 2 . . . . . . Database Lockouts 1 | . . . . . 1 . . . . . . Manual . | . . . . . . . . . . . . Terminals 30 | . 6 7 . 7 4 2 2 . 2 . . Fabricators 2 | . . . . . . . 2 . . . . Repair Stations 7 | . 2 . . 3 . 2 . . . . . Recycling Units . | . . . . . . . . . . . . Scanalyzers 12 | . . . . . 10 . 2 . . . . Garrison Access 4 | . . . . . 1 2 1 . . . . Terminal Hacks 26 | . 4 4 . 6 2 1 1 . 3 5 . Record 6 | . . . . . . 1 . . 2 3 . Robot Analysis 1 | . . . . 1 . . . . . . . Prototype ID Bank 1 | . . . . 1 . . . . . . . Open Door 3 | . . . . . . . . . 1 2 . Open DSF 1 | . . . . . 1 . . . . . . Emergency Access Points 2 | . 1 1 . . . . . . . . . Alert Level 2 | . 1 . . 1 . . . . . . . Unreport Threat 2 | . . 1 . . 1 . . . . . . Dispatch Records 1 | . . . . 1 . . . . . . . Surveillance Status 1 | . 1 . . . . . . . . . . Investigation Status 1 | . 1 . . . . . . . . . . Reinforcement Status 1 | . . . . 1 . . . . . . . Hauler Manifests 1 | . . 1 . . . . . . . . . Zone Layout 3 | . . 1 . 1 . . 1 . . . . Fabricator Hacks 2 | . . . . . . . 2 . . . . Load Schematic 1 | . . . . . . . 1 . . . . Build 1 | . . . . . . . 1 . . . . Repair Station Hacks 2 | . . . . 2 . . . . . . . Scan Component 1 | . . . . 1 . . . . . . . Repair 1 | . . . . 1 . . . . . . . Recycling Unit Hacks . | . . . . . . . . . . . . Scanalyzer 8 | . . . . . 7 . 1 . . . . Insert Component 3 | . . . . . 3 . . . . . . Analyze 3 | . . . . . 3 . . . . . . Retrieve Study 2 | . . . . . 1 . 1 . . . . Garrison Access Hacks 1 | . . . . . . . 1 . . . . Seal Access 1 | . . . . . . . 1 . . . . Unauthorized Hacks . | . . . . . . . . . . . . Terminals . | . . . . . . . . . . . . Fabricators . | . . . . . . . . . . . . Repair Stations . | . . . . . . . . . . . . Recycling Units . | . . . . . . . . . . . . Scanalyzers . | . . . . . . . . . . . . Garrison Access . | . . . . . . . . . . . . Data Cores Recovered 1 | . . . . 1 . . . . . . . Used . | . . . . . . . . . . . . Hacking Detections 16 | . 1 3 . 2 4 3 3 . . . . Full Trace Events 1 | . . . . . . . 1 . . . . Feedback Events . | . . . . . . . . . . . . Feedback Blocked . | . . . . . . . . . . . . Robot Schematics Acquired . | . . . . . . . . . . . . Robots Built . | . . . . . . . . . . . . Authchips . | . . . . . . . . . . . . Time . | . . . . . . . . . . . . Total Robot Build Rating . | . . . . . . . . . . . . Part Schematics Acquired 2 | . . . . . 2 . . . . . . Parts Built 2 | . . . . . . . 2 . . . . Authchips . | . . . . . . . . . . . . Time 28 | . . . . . . . 28 . . . . Total Part Build Rating 8 | . . . . . . . 8 . . . . Part Studies Acquired 2 | . . . . . 1 . 1 . . . . Parts Repaired 1 | . . . . 1 . . . . . . . Time 108 | . . . . 108 . . . . . . . Parts Recycled . | . . . . . . . . . . . . Recycled Matter . | . . . . . . . . . . . . Retrieved Matter . | . . . . . . . . . . . . Retrieved Components . | . . . . . . . . . . . . Parts Scanalyzed 3 | . . . . . 3 . . . . . . Part Schematics Acquired 2 | . . . . . 2 . . . . . . Parts Damaged . | . . . . . . . . . . . . Bothacking | -11 -10 -9 -9 -8 -7 -6 -5 -5 -5 -5 -4 ------------ Run | Yrd Mat Mat Min Mat Fac Fac Fac Upp Upp War Pro Used RIF Installer . | . . . . . . . . . . . . Robots Hacked . | . . . . . . . . . . . . Non-combat . | . . . . . . . . . . . . Combat . | . . . . . . . . . . . . Robot Hacks Applied . | . . . . . . . . . . . . Relay Couplers Released . | . . . . . . . . . . . . Fabnet Peak Effective % . | . . . . . . . . . . . . Robots Rewired . | . . . . . . . . . . . . Allies Hacked . | . . . . . . . . . . . . Hacks Repelled . | . . . . . . . . . . . . Allies | -11 -10 -9 -9 -8 -7 -6 -5 -5 -5 -5 -4 -------- Run | Yrd Mat Mat Min Mat Fac Fac Fac Upp Upp War Pro Total Allies . | . . . . . . . . . . . . Largest Group . | . . . . . . . . . . . . Highest-Rated Group . | . . . . . . . . . . . . Highest-Rated Ally . | . . . . . . . . . . . . Total Orders . | . . . . . . . . . . . . Ally Attacks . | . . . . . . . . . . . . Total Damage . | . . . . . . . . . . . . Kills . | . . . . . . . . . . . . Allies Corrupted . | . . . . . . . . . . . . Allies Melted . | . . . . . . . . . . . . Intel | -11 -10 -9 -9 -8 -7 -6 -5 -5 -5 -5 -4 ------- Run | Yrd Mat Mat Min Mat Fac Fac Fac Upp Upp War Pro Active Infowar (turns) 8379 | . . . . 2011 2461 580 71 454 1470 1147 185 Sensors 4737 | . . . . 1867 2461 409 . . . . . Terrain 14 | . . . . . 14 . . . . . . Decoding 2839 | . . . . . . . . 37 1470 1147 185 Jamming 2114 | . . . . 941 31 573 71 454 43 1 . ECM 1104 | . . . . . . 577 . 442 85 . . Robot Analysis Total 1 | . . . . 1 . . . . . . . Derelict Logs Recovered 3 | . . . 1 . . . . . 1 . 1 Drone Launches . | . . . . . . . . . . . . Drone Recoveries . | . . . . . . . . . . . . Exploration | -11 -10 -9 -9 -8 -7 -6 -5 -5 -5 -5 -4 ------------- Run | Yrd Mat Mat Min Mat Fac Fac Fac Upp Upp War Pro Turns Passed 10460 | 54 231 638 567 2093 2461 802 358 454 1470 1147 185 Spaces Moved 6118 | 29 189 399 328 891 920 443 331 431 941 871 345 Core 1010 | 15 . . . . 19 196 160 . 150 125 345 Treads 1645 | . . 47 328 891 343 . . . . 36 . Legs 1631 | 14 189 352 . . 338 247 126 . 365 . . Wheels 1799 | . . . . . 220 . 45 431 393 710 . Hover 33 | . . . . . . . . . 33 . . Flight . | . . . . . . . . . . . . Fastest Speed 50 | 50 120 120 145 145 95 50 50 100 50 50 50 Average Speed 137 | 139 120 125 145 155 194 158 84 103 140 125 50 Slowest Speed 750 | 250 120 260 145 225 750 400 250 115 350 250 50 Overloaded Moves . | . . . . . . . . . . . . Propulsion Burnouts . | . . . . . . . . . . . . Robots Hopped . | . . . . . . . . . . . . Potential Cave-ins . | . . . . . . . . . . . . Cave-ins Triggered 2 | . . . . 2 . . . . . . . Exploration Rate (%) 39 | 4 35 28 68 36 20 12 5 62 69 75 56 Regions Visited 11 Branch Regions 5 Pre-discovered Areas . | . . . . . . . . . . . . Known Exits Taken 2 | . . . . 1 1 . . . . . . Unknown Exits Taken 9 | 1 1 1 1 . . 1 1 1 1 1 . Scrap Searched 8 | . . . 2 . . . . 2 3 . 1 Spaces Dug 12 | . . . . 12 . . . . . . . Terrain Destroyed 214 | . . . 9 78 111 16 . . . . . Melee . | . . . . . . . . . . . . Projectile 95 | . . . 9 78 6 2 . . . . . AOE 119 | . . . . . 105 14 . . . . . Terrain Rammed . | . . . . . . . . . . . . Walls Destroyed . | . . . . . . . . . . . . Machines Disabled . | . . . . . . . . . . . . Actions | -11 -10 -9 -9 -8 -7 -6 -5 -5 -5 -5 -4 --------- Run | Yrd Mat Mat Min Mat Fac Fac Fac Upp Upp War Pro Total 7496 | 38 191 480 372 1373 1365 520 388 436 1052 924 357 Wait 607 | . 1 16 3 240 258 4 19 . 38 16 12 Move 6107 | 28 188 398 327 890 919 442 330 430 940 870 345 Hop . | . . . . . . . . . . . . Pick Up 101 | 3 1 14 4 29 19 8 2 2 8 11 . Fast Attach 78 | 5 . 4 1 12 23 8 7 1 14 3 . Attach 74 | 1 . 7 1 19 13 11 7 2 9 4 . Detach 20 | . . 2 1 4 2 4 2 . 5 . . Swap 47 | . . . 6 17 10 8 1 1 . 4 . Drop 77 | . . 7 2 30 10 14 . . 3 11 . Fire 356 | 1 1 31 26 122 110 17 13 . 35 . . Melee . | . . . . . . . . . . . . Ram 11 | . . . . . . 4 7 . . . . Kick 1 | . . 1 . . . . . . . . . Crush 13 | . . . 1 10 1 . . . . 1 . Escape Stasis . | . . . . . . . . . . . . Rewire 4 | . . . . . . . . . . 4 . Trap . | . . . . . . . . . . . . Miscellaneous . | . . . . . . . . . . . . Route ------- -11/Scrapyard -10/Materials -9/Materials -9/Mines -8/Materials -7/Factory -6/Factory -5/Factory (discovered 2 exits: [*Fac] / [*Upp]) -5/Upper Caves -5/Upper Caves -5/Warlord -4/Proximity Caves History --------- Turn | Location | Event 11 | -11/Scrapyard | Discovered new exit (range 16) 55 | -11/Scrapyard | Entered Materials 56 | -10/Materials | Met a group of wandering Federalists 212 | -10/Materials | Discovered new exit (range 7) 286 | -10/Materials | Entered another Materials area 286 | -9/Materials | Evolved 2 slots: Power x1, Propulsion x1 317 | -9/Materials | Build established: Mutant 540 | -9/Materials | Lost 3 parts (2n1w) 898 | -9/Materials | Discovered new exit (range 9) 924 | -9/Materials | Entered Mines 1039 | -9/Mines | Found a damaged Exp. Sensor Array with a note attached 1042 | -9/Mines | Found Prototype Device 1223 | -9/Mines | Learned Materials trap positions 1242 | -9/Mines | Joined a pair of Derelicts in attacking an 0b10 outpost 1336 | -9/Mines | Excavation squad dispatched 1336 | -9/Mines | A large section of the Mines collapsed 1425 | -9/Mines | A weapon hastily lodged in a ceiling crevice suddenly fell to the ground 1467 | -9/Mines | Discovered new exit (range 10) 1491 | -9/Mines | Entered Materials 1491 | -8/Materials | Evolved 2 slots: Utility x2 1492 | -8/Materials | Loaded intel: 8 trap records 1493 | -8/Materials | Identified Exp. Sensor Array 1954 | -8/Materials | Lost 4 parts (3p1u) 2283 | -8/Materials | Lost 3 parts (1p1n1w) 2791 | -8/Materials | Repaired Exp. Sensor Array 2981 | -8/Materials | Crushed by falling debris 2999 | -8/Materials | Crushed by falling debris 3030 | -8/Materials | Lost 4 parts (1p2u1w) 3560 | -8/Materials | Discovered new exit (range 16) 3581 | -8/Materials | Identified exit to Factory 3584 | -8/Materials | Entered Factory 3584 | -7/Factory | Evolved 2 slots: Power x1, Utility x1 3594 | -7/Factory | Identified exit to DSF 3729 | -7/Factory | Central database locked down 4461 | -7/Factory | Lost 3 parts (1p1n1w) 5194 | -7/Factory | Build established: Scavenger-Mutant 5247 | -7/Factory | Garrison activated, responded to threat 5497 | -7/Factory | Garrison activated, responded to threat 5503 | -7/Factory | Core integrity fell below 50% 5566 | -7/Factory | Lost 6 parts (1p1n2u2w) 5637 | -7/Factory | Core integrity fell below 20% 5677 | -7/Factory | Lost 4 parts (2p1n1u) 5945 | -7/Factory | Build established: Mutant 5994 | -7/Factory | Discovered new exit (range 6) 6004 | -7/Factory | Identified exit to Factory 6045 | -7/Factory | Entered another Factory area 6045 | -6/Factory | Evolved 2 slots: Utility x2 6331 | -6/Factory | Build established: Infiltrator-Mutant 6646 | -6/Factory | Lost 8 parts (2p2n3u1w) 6753 | -6/Factory | Core integrity fell below 50% 6760 | -6/Factory | Discovered new exit (range 16) 6847 | -6/Factory | Core integrity fell below 20% 6847 | -6/Factory | Entered another Factory area 6847 | -5/Factory | Evolved 2 slots: Propulsion x1, Utility x1 6908 | -5/Factory | Discovered new exit (range 10) 7029 | -5/Factory | Build established: Mutant 7071 | -5/Factory | Discovered new exit (range 16) 7106 | -5/Factory | Fabricated Mic. Nuclear Core? 7205 | -5/Factory | Entered Upper Caves 7229 | -5/Upper Caves | Lost 4 parts (2p2w) 7308 | -5/Upper Caves | Attracted the attention of an 0b10 checkpoint 7338 | -5/Upper Caves | Encountered a Warlord checkpoint 7416 | -5/Upper Caves | Build established: Infiltrator-Mutant 7565 | -5/Upper Caves | Attracted the attention of an 0b10 outpost 7636 | -5/Upper Caves | Discovered new exit (range 8) 7659 | -5/Upper Caves | Entered another Upper Caves area 7661 | -5/Upper Caves | Attracted the attention of an 0b10 checkpoint 7801 | -5/Upper Caves | Lost 7 parts (2p3n2u) 7904 | -5/Upper Caves | Core integrity fell below 50% 7946 | -5/Upper Caves | Lost 8 parts (2p1n3u2w) 8110 | -5/Upper Caves | Build established: Derelict-Mutant 8992 | -5/Upper Caves | Build established: Mutant 9107 | -5/Upper Caves | Learned Factory terminal intel 9113 | -5/Upper Caves | Discovered new exit (range 12) 9129 | -5/Upper Caves | Entered Warlord 9426 | -5/Warlord | Visited the Vortex Lab 9438 | -5/Warlord | Warlord's base attacked by MAIN.C 9442 | -5/Warlord | Found Prototype Energy Gun 9443 | -5/Warlord | Identified Vortex Rifle 9447 | -5/Warlord | Found Vortex Rifle 9454 | -5/Warlord | Found Prototype Energy Cannon 9455 | -5/Warlord | Identified Vortex Cannon 9459 | -5/Warlord | Found Vortex Cannon 9685 | -5/Warlord | Found Prototype Special Weapon 9686 | -5/Warlord | Identified RU-N14's Throwing Claymores v3 9753 | -5/Warlord | Learned Testing trap positions 9765 | -5/Warlord | Met Warlord 9788 | -5/Warlord | Warlord forces counterattacked 10113 | -5/Warlord | Warlord base infiltrated, sounded retreat 10154 | -5/Warlord | Spotted Striker 10158 | -5/Warlord | Spotted Executioner 10182 | -5/Warlord | Lost 4 allies 10194 | -5/Warlord | Spotted Striker 10197 | -5/Warlord | Spotted Striker 10217 | -5/Warlord | Core integrity fell below 20% 10247 | -5/Warlord | Lost 7 parts (1p3n2u1w) 10271 | -5/Warlord | Discovered new exit (range 10) 10276 | -5/Warlord | Entered Proximity Caves 10312 | -4/Proximity Caves | Learned 4 Research zone layouts 10398 | -4/Proximity Caves | Spotted B-86 Titan 10411 | -4/Proximity Caves | Attracted the attention of an 0b10 checkpoint 10461 | -4/Proximity Caves | Destroyed by L-61 Swordsman with Power Sword Last Messages --------------- 10276_ System corrupted: Heat flow error (+110). [Achievement: Charge!!!] LOCATION=UNKNOWN GOAL=ESCAPE 10304_ BMZ3W6EMG|8,NYDK40JNRU0Q 10312_ Acquired derelict log, extracted data. Data stored: Research zone layouts (x4). 10317_ Searching scrap... 10317_ Found Wave Gun. 10317_ Found Unknown Ballistic Cannon. 10317_ Found 55 Matter. 10329_ System corrupted: Energy discharge (-35). 10333_ C-30 ARC bursts open, deploying its payload. 10333_ G-67 Veteran unfolds itself. 10408_ 9T-JI0(k) breaks down the debris. 10411_ Y-64 Sentinel: "INTERCEPTING UNREGISTERED DERELICT." 10415_ Penetrated by Slug. 10446_ System corrupted: Component data lost. Map ----- +----------------------------------------------------+ | | | ?????????????????????????????????????????????????? | | ?????????????????????????????????????????????????? | | ?????????????????????????????????????????????????? | | ?????????????????????????????????????????????????? | | ?????????????????????????????????????????????????? | | ?????????????????????????????????????????????????? | | ?????????????????????????????????????????????????? | | ?????????????????????????????????????????????????? | | ?????????????????????????????????????????????????? | | ?????????????????????????????????????????????????? | | ?????????????????????????????????????????????????? | | ?????????????????????????????????????????????????? | | ?????????????????????????????????????????????????? | | ?????????????????????????????????????????????????? | | ?????????????????????????????????????????????????? | | ?????????????########?######?????????????????????? | | ????????????## ### ##?????????????#####??? | | ????????????# #?????????????# #??? | | ????????????# #?????????????## #??? | | ?????????????# #?????????????## #???? | | ?????????????## g ##????????????# #???? | | ?????????????## ## ##???????????# ##???? | | ??????#####?## #### #???????????# #????? | | ?????## ### ##??## #??????????## #????? | | ?????# #????##l@ ##?????????## ##????? | | ?????##### #?????## ##??###????## ##?????? | | ########## #??????###?### ##??## ##??????? | | # ######??????## #??# ##???????? | | #?# ##???### #???# #????????? | | #?# ##### #???# ##????????? | | ### ### ## ##?## ##????????? | | #?### ### #######??? | | #???## ## ##?? | | ##???## ### #?? | | ###??## ### ### #?? | | #???### ##?# ##?## ## #?? | | ## #?????## ##??## ##???## ##### #?? | | ###### ##?????###????###?????# ##???#### #?? | | ##???## #???????????????###?# #???????# #?? | | #???## ##???????????????# ?#####?####### #?? | | #??## ##?????????????#?## ??????# #?? | | ???# ##?????????????# "#" ?????## #?? | | ??## ##??????????????#""" #?#### #?? | | ?## #????????????????# ?# #?? | | ## #?????????????????#" ## ## ##?? | | # #??????????????????### ### ##??? | | # #??????????? ## #?# #???? | | ## ##??????????? ## #######?# #???? | | ?# #???????????? ########## #???????## ???? | +----------------------------------------------------+ Best States ------------- Heat Dissipation 89 Energy Generation 44 Energy Capacity 730 Matter Stores 300 Matter Capacity 300 Sight Range 16 Robot Scan Range 20 Terrain Scan Range 16 Terrain Scan Density 10 ECM Strength 2 Jamming Range 14 Power Amplification 20 Base Temperature (-) 100 Armor Coverage 375 Resistance: KI 20 Resistance: EM 20 Core Shielding 20 Evasion (%) 55 Targeting Accuracy 24 Recoil Reduction 3 Particle Charging 20 Offensive Hacking 14 Item Schematics ----------------- Imp. EM Shotgun | -7/Factory | Scanalyzed Mic. Nuclear Core | -7/Factory | Scanalyzed Robot Schematics ------------------ None Fabricated ------------ Mic. Nuclear Core | x2 | -5/Factory Repaired ---------- Exp. Sensor Array | 62% | -8/Materials Studied --------- Mic. Nuclear Core | -7/Factory | Hacked Hpw. Shock Rifle | -5/Factory | Hacked Alien Tech Used ----------------- None Achievements -------------- A Powerful Ally? Bumper Bots Charge!!! Construction Begets Destruction DIY Cooler It Was An Accident, I Swear Item+ Overwhelming Slippery One There's More Where That Came From Throw Away The Key Well Done Challenges ------------ None Game ------ Seed ExperimentalMolecularArmor Manual? 0 Play Time 03:49:24 Cumulative 40.6 hours Start 2026.01.09 @ 12:28:16 End 2026.01.11 @ 00:04:44 Sessions 7 Manual Loads 0 Difficulty Rogue Special Mode None Game No. 49 Rogue 49 Adventurer 0 Explorer 0 Win Type - Total 0 Types 0/0/0/0/0/0/0/0/0/0 Lore% 10 Gallery% 27 Achievement% 17 Wizard Run 0 Options --------- Layout 1 ASCII 0 Keyboard 0 Movement Arrows Keybinds 0 Fullscreen 1 Font 16/SmallcapsGlow Map View 50x40 Zoom Use 0% Tactical HUD 1 Map Filters NONE Filters NONE Steam SD RUN: 917c0001-93dc-48a1-8d59-3bcba1ea27fc